bitfinex/quotes_ETHUSD_20241009
["timestamp","ask_amount","ask_price","bid_price","bid_amount"]
[1728505246223,4.14327,2413.6,2413.1,4.14396]
[1728505246643,0.09603202,2413.5,2413.1,4.14396]
[1728505247013,0.09603202,2413.5,2413.0,4.14407]
[1728505247217,4.23940202,2413.5,2413.0,8.2882]
[1728505247431,4.23941202,2413.5,2413.1,4.14395]
[1728505247740,4.23941202,2413.5,2413.0,4.14407]
[1728505247910,4.23941202,2413.5,2413.0,8.2882]
[1728505248308,0.09603202,2413.5,2413.0,4.14407]
[1728505248520,0.09603202,2413.5,2413.0,4.2269436]
[1728505248724,4.23941202,2413.5,2413.0,4.2269436]
[1728505250018,4.23941202,2413.5,2413.0,8.3710736]
[1728505250218,0.09603202,2413.5,2413.1,4.14396]
[1728505250543,4.23942202,2413.5,2413.0,8.28819]
[1728505252363,0.09603202,2413.5,2413.1,4.14395]
[1728505252556,0.09603202,2413.5,2413.3,4.91788]
[1728505252764,4.95249,2413.9,2413.4,4.14353]
[1728505252934,4.95249,2413.9,2413.4,4.22639231]
[1728505253266,4.14286,2413.8,2413.4,4.22639231]
[1728505253644,4.14286,2413.8,2413.4,0.08286231]
[1728505255074,4.6750497,2413.9,2413.3,0.7742]
[1728505255239,4.14331,2413.6,2413.1,4.14391]
[1728505256039,8.0084897,2413.7,2413.2,4.14385]
[1728505256747,4.14314,2413.7,2413.3,4.14367]
[1728505257139,4.1431,2413.7,2413.2,4.14385]
[1728505257467,4.1431,2413.7,2413.3,0.7603]
[1728505257845,8.2862,2413.7,2413.3,0.7603]
[1728505259410,4.14347,2413.5,2413.0,4.92347]
[1728505259556,4.14355,2413.4,2413.0,4.92347]
[1728505259754,3.8653497,2413.3,2412.8,4.92381]
[1728505259970,8.0091297,2413.3,2412.8,5.00668622]
[1728505260395,4.14378,2413.3,2412.8,5.00668622]
[1728505260604,4.14378,2413.3,2412.8,9.15114622]
[1728505260901,4.14378,2413.3,2412.9,4.14436]
[1728505261592,8.28759,2413.3,2412.8,0.7794]
[1728505261898,8.28759,2413.3,2412.8,5.00676028]
[1728505261899,4.14378,2413.3,2412.8,5.00676028]
[1728505262501,4.14378,2413.3,2412.7,11.52471]
[1728505262502,4.23983425,2413.2,2412.7,11.52471]
[1728505262667,4.14405,2413.1,2412.7,11.52471]
[1728505263007,0.09586197,2413.0,2412.7,11.52471]
[1728505263216,0.09586197,2413.0,2412.4,0.1202643]
[1728505263217,4.14507,2412.5,2412.4,0.1202643]
[1728505263364,0.8052,2412.5,2412.4,0.1202643]
[1728505263560,0.09585347,2412.5,2412.4,0.1202643]
[1728505263764,9.09455,2412.8,2412.4,0.1202643]
[1728505263999,0.09585347,2412.5,2412.4,0.1202643]
[1728505264298,4.94985,2412.8,2412.4,4.2654943]
[1728505264604,4.94985,2412.8,2412.4,0.1202643]
[1728505264800,0.09585347,2412.7,2412.4,0.1202643]
[1728505265108,0.09585347,2412.7,2412.6,4.1449]
[1728505265279,4.94925,2413.1,2412.6,5.1265489]
[1728505265487,0.09585347,2412.7,2412.6,5.1265489]
[1728505265809,4.94925,2413.1,2412.6,5.20943588]
[1728505266023,4.94925,2413.1,2412.6,4.22766698]
[1728505266239,4.14448,2412.9,2412.6,0.08288688]
[1728505266927,0.09585347,2412.8,2412.5,0.7744]
[1728505267507,0.09585347,2412.8,2412.5,5.00236173]
[1728505268129,0.09585347,2412.8,2412.6,4.69473]
[1728505268304,4.14378,2413.3,2412.7,6.14831396]
[1728505268499,0.0956621,2413.2,2412.8,4.14452]
[1728505268829,8.28758,2413.3,2412.8,4.22740206]
[1728505269037,0.0956621,2413.1,2412.8,4.22740206]
[1728505269200,8.28758,2413.3,2412.8,4.22740206]
[1728505269397,0.0956621,2413.0,2412.8,4.22740206]
[1728505269741,12.85916497,2413.7,2413.1,4.14404]
[1728505269742,0.781,2413.6,2413.1,4.14404]
[1728505270036,4.92386,2413.8,2413.1,4.22691112]
[1728505270241,4.92386,2413.8,2413.3,4.14369]
[1728505270444,4.14263,2414.0,2413.5,4.14335]
[1728505270445,0.781,2414.0,2413.5,4.14335]
[1728505270614,0.781,2414.0,2413.6,4.14317]
[1728505270959,4.92353,2414.0,2413.6,4.14317]
[1728505271501,4.92353,2414.0,2413.4,5.00618594]
[1728505271739,4.92353,2414.0,2413.5,8.28649]
[1728505271940,0.781,2414.0,2413.5,4.14323]
[1728505272246,0.781,2414.3,2413.8,0.7799]
[1728505272456,4.92247,2414.6,2414.1,4.14229]
[1728505272616,4.14174,2414.5,2414.1,0.08283646]
[1728505273145,4.14174,2414.5,2414.0,4.14241]
[1728505273497,4.14198,2414.3,2413.8,4.92265]
[1728505273974,12.1494397,2414.3,2413.8,4.92265]
[1728505274136,8.0073297,2414.3,2413.8,4.92265]
[1728505274867,3.8653497,2413.9,2413.7,7.38]
[1728505275072,8.0080697,2413.9,2413.4,4.92332]
[1728505275230,8.0080697,2413.9,2413.5,4.14334]
[1728505275430,0.0960234,2413.8,2413.5,4.14334]
[1728505275828,0.0960234,2413.8,2413.4,4.92332]
[1728505276127,0.0960234,2413.8,2413.6,4.14313]
[1728505276357,12.1502097,2414.1,2413.7,0.08285103]
[1728505276556,0.7748,2413.9,2413.4,4.92333]
[1728505276765,0.7748,2413.9,2413.4,0.7799]
[1728505276766,4.23877141,2413.8,2413.4,0.7799]
[1728505276942,3.8653497,2413.7,2413.3,4.14359]
[1728505277146,0.09591716,2413.6,2413.2,4.96977]
[1728505277358,4.23918716,2413.6,2413.1,4.14392]
[1728505277555,0.09591716,2413.6,2413.1,4.22678953]
[1728505277788,0.09591716,2413.6,2413.1,4.64918895]
[1728505277986,0.09591716,2413.6,2413.0,0.8259]
[1728505277987,4.96697,2413.5,2413.0,0.8259]
[1728505278282,0.8236,2413.5,2413.0,0.8259]
[1728505278488,0.09589166,2413.4,2413.1,4.2268216]
[1728505279086,0.09589166,2413.4,2413.1,4.2268116]
[1728505279291,0.09589166,2413.4,2413.0,4.97011]
[1728505279462,4.1437,2413.3,2413.0,0.8259]
[1728505279849,0.09612132,2413.2,2413.0,0.8259]
[1728505280270,4.1437,2413.3,2413.0,0.8259]
[1728505280483,0.09612132,2413.1,2413.0,0.8259]
[1728505280662,4.14354,2413.4,2413.0,0.8259]
[1728505281121,0.09612132,2413.3,2413.0,0.8259]
[1728505281591,0.09612132,2413.3,2413.1,0.08287235]
[1728505281801,0.09612132,2413.3,2413.2,4.14387]
[1728505282098,12.9035697,2413.9,2413.3,4.14357]
[1728505282251,4.14286,2413.8,2413.4,0.7945]
[1728505283599,7.42,2414.1,2413.7,4.14301]
[1728505283951,7.42,2414.1,2413.7,4.22586064]
[1728505284755,11.2853497,2414.1,2413.4,5.85437031]
[1728505284961,4.1426,2414.0,2413.5,4.69333]
[1728505285157,4.14277,2413.9,2413.5,0.08285274]
[1728505286109,4.89498,2414.2,2413.6,4.14316]
[1728505286407,4.14234,2414.1,2413.7,0.55]
[1728505286591,1.29026697,2414.1,2413.6,4.69318]
[1728505286906,1.29026697,2414.1,2413.6,4.22603223]
[1728505286907,4.14251,2414.0,2413.6,4.22603223]
[1728505287596,0.7904,2413.8,2413.4,4.14341]
[1728505287988,0.7904,2413.8,2413.5,0.08285608]
[1728505288667,4.93329,2413.8,2413.4,0.08285792]
[1728505288868,8.28552,2413.9,2413.4,4.22634792]
[1728505289203,5.56326367,2413.9,2413.4,4.22634792]
[1728505289562,4.14288,2413.8,2413.4,0.08285792]
[1728505292490,0.09616807,2413.7,2413.4,0.08285792]
[1728505292687,4.23930807,2413.7,2413.2,5.8283]
[1728505293007,0.09615532,2413.6,2413.3,4.22647263]
[1728505293215,4.14288,2413.8,2413.3,4.22647263]
[1728505293534,0.09615532,2413.5,2413.3,4.22645263]
[1728505293823,0.09615532,2413.4,2413.3,4.22645263]
[1728505294332,4.14288,2413.8,2413.3,4.22645263]
[1728505294621,4.14288,2413.8,2413.3,8.37007263]
[1728505294784,0.09615107,2413.7,2413.3,4.14359]
[1728505294985,4.14288,2413.8,2413.3,4.22645265]
[1728505295192,0.09615107,2413.7,2413.3,4.22645265]
[1728505295504,8.28585,2413.8,2413.3,4.22645265]
[1728505295698,0.09615107,2413.6,2413.3,4.22645265]
[1728505295903,8.28585,2413.8,2413.3,4.22645265]
[1728505296135,0.09615107,2413.5,2413.3,4.22645265]
[1728505296302,4.14288,2413.8,2413.3,9.78994191]
[1728505296513,0.09615107,2413.4,2413.3,5.52349]
[1728505296827,7.14233,2414.1,2413.7,4.97289]
[1728505297123,4.14233,2414.1,2413.7,4.97289]
[1728505297333,0.09616807,2414.0,2413.7,0.8299]
[1728505298497,0.09616807,2414.0,2413.7,0.9127511]
[1728505298824,0.8137,2413.9,2413.4,0.55]
[1728505299011,4.14285,2413.8,2413.5,0.08285767]
[1728505299220,0.09620633,2413.7,2413.5,0.08285767]
[1728505299787,4.14302,2413.7,2413.5,0.08285767]
[1728505300043,0.09620633,2413.6,2413.3,8.1532]
[1728505300330,0.09620633,2413.6,2413.3,0.7732]
[1728505300531,0.09620633,2413.6,2413.2,13.28758]
[1728505300687,0.09620633,2413.6,2413.2,9.14379]
[1728505301406,0.09620633,2413.6,2413.2,13.28758]
[1728505301608,0.09620633,2413.6,2413.2,9.14379]
[1728505302633,0.09620633,2413.6,2413.2,9.14378]
[1728505303708,0.09620633,2413.6,2413.3,0.55]
[1728505304941,4.14371,2413.3,2412.9,4.35379039]
[1728505305113,4.14371,2413.3,2412.9,4.14438]
[1728505305451,0.0960958,2413.2,2412.9,4.14438]
[1728505305954,4.14354,2413.4,2412.9,4.14427]
[1728505306311,0.0960958,2413.3,2413.0,0.55]
[1728505306515,4.2398358,2413.3,2413.0,0.55]
[1728505307599,4.14402,2413.2,2412.8,0.8027]
[1728505307803,5.26426805,2413.3,2412.6,0.8063]
[1728505307804,4.6285497,2413.1,2412.6,0.8063]
[1728505308130,4.14463,2412.8,2412.5,7.38]
[1728505308648,0.09599376,2412.7,2412.5,7.38]
[1728505308801,4.14463,2412.8,2412.4,0.9265643]
[1728505309000,4.14499,2412.6,2412.4,0.1202643]
[1728505309713,0.09589171,2412.5,2412.4,0.1202643]
[1728505311042,8.7732997,2412.7,2412.4,0.1202643]
[1728505311217,0.09589171,2412.5,2412.4,0.1202643]
[1728505311538,4.90795,2412.7,2412.4,0.1202643]
[1728505311738,0.09589171,2412.5,2412.4,0.1202643]
[1728505311929,4.90793,2412.7,2412.4,0.1202643]
[1728505312131,0.09589171,2412.5,2412.4,0.1202643]
[1728505312339,0.8178,2413.0,2412.7,4.14472]
[1728505312513,0.8178,2413.2,2412.8,4.559012]
[1728505312848,0.8178,2413.2,2412.8,5.313512]
[1728505314003,4.96179,2413.2,2412.8,1.168972]
[1728505314244,4.14371,2413.3,2412.8,5.313512]
[1728505314632,4.96133,2413.4,2412.9,4.14437]
[1728505314809,4.96133,2413.4,2412.9,5.09844611]
[1728505315253,4.14374,2413.3,2412.9,0.95407611]
[1728505316248,4.14374,2413.3,2412.9,5.09845611]
[1728505316637,4.14374,2413.3,2412.9,0.95407611]
[1728505317154,0.8178,2413.4,2413.0,4.14412]
[1728505317330,8.2868,2413.5,2413.1,0.51810762]
[1728505317652,4.14354,2413.4,2413.0,0.08287028]
[1728505318225,4.14336,2413.5,2413.0,0.08287028]
[1728505318435,4.9454,2413.6,2413.2,0.8253]
[1728505318626,4.9454,2413.6,2413.2,5.05200598]
[1728505319312,8.0087097,2413.5,2413.0,5.45841]
[1728505319613,8.0087097,2413.5,2413.1,0.08287048]
[1728505319815,4.14353,2413.4,2413.1,0.08287048]
[1728505320547,4.14353,2413.4,2413.0,1.39717223]
[1728505321125,4.14353,2413.4,2413.0,5.54135223]
[1728505321543,3.8653497,2413.5,2413.0,5.54135223]
[1728505321743,4.1436,2413.4,2413.0,1.39717223]
[1728505322557,0.09223821,2413.3,2413.0,1.39717223]
[1728505325114,0.09223821,2413.3,2413.0,5.54130223]
[1728505325325,0.09223821,2413.3,2413.2,4.14387]
[1728505325558,4.14365,2413.4,2413.0,1.3143]
[1728505325716,0.09223821,2413.3,2413.0,1.3143]
[1728505326055,0.09223821,2413.3,2413.0,1.39717437]
[1728505326658,0.09223821,2413.3,2413.0,5.54138437]
[1728505326822,0.09223821,2413.3,2413.0,1.39717437]
[1728505327755,0.09223821,2413.3,2413.0,0.63287437]
[1728505328736,0.09223821,2413.3,2413.0,4.6942]
[1728505328929,0.09223821,2413.3,2413.0,5.66747645]
[1728505329164,0.09223821,2413.3,2413.0,1.52327645]
[1728505329984,4.23600821,2413.3,2413.0,1.52327645]
[1728505330136,0.09223821,2413.3,2413.0,0.55]
[1728505330469,0.09223821,2413.3,2413.0,0.08287447]
[1728505330683,4.23598821,2413.3,2412.9,0.55]
[1728505330850,0.09223821,2413.3,2412.9,0.55]
[1728505331049,4.23593821,2413.3,2412.9,0.55]
[1728505331759,0.09223821,2413.3,2412.9,4.69438]
[1728505331962,0.09223821,2413.3,2412.9,2.015007]
[1728505332160,0.09223821,2413.3,2413.0,4.1442]
[1728505333173,0.09223821,2413.3,2413.2,5.48717]
[1728505333387,0.09223821,2413.3,2413.2,5.57003614]
[1728505333719,8.8256297,2413.9,2413.3,0.55]
[1728505333720,4.14302,2413.7,2413.3,0.55]
[1728505333879,4.14302,2413.7,2413.4,0.08286216]
[1728505334179,7.6232618,2414.4,2413.4,0.08286216]
[1728505334180,4.14258,2414.0,2413.5,5.51258]
[1728505334386,4.14269,2413.9,2413.5,1.45215732]
[1728505334568,4.14147,2414.6,2413.5,1.45215732]
[1728505334569,4.14174,2414.5,2414.0,0.8193]
[1728505334885,4.14198,2414.4,2414.0,0.8193]
[1728505337249,4.23421085,2414.3,2414.0,0.8193]
[1728505339745,4.23421085,2414.3,2413.9,0.08284268]
[1728505339951,4.14233,2414.1,2413.6,4.14306]
[1728505340252,0.09223085,2414.0,2413.7,0.08285191]
[1728505340456,0.09223085,2414.0,2413.7,4.22585191]
[1728505340950,0.09223085,2414.0,2413.6,4.14306]
[1728505340951,4.23483085,2414.0,2413.6,0.55]
[1728505341299,0.09223085,2414.0,2413.6,4.77600213]
[1728505341489,4.23474085,2414.0,2413.6,4.77600213]
[1728505341693,4.14271,2413.9,2413.5,0.87445325]
[1728505341983,4.14286,2413.8,2413.5,0.7916]
[1728505342191,0.09223085,2413.8,2413.5,0.7916]
[1728505342574,0.09223085,2413.8,2413.4,4.14343]
[1728505342575,4.14289,2413.8,2413.4,4.14343]
[1728505342783,0.09246965,2413.7,2413.4,4.14343]
[1728505343189,4.14293,2413.8,2413.4,0.55]
[1728505343495,4.14303,2413.7,2413.3,0.7916]
[1728505343659,4.23549965,2413.7,2413.3,0.7916]
[1728505344487,4.23549965,2413.7,2413.3,4.93529]
[1728505347385,5.03319965,2413.7,2413.3,0.7916]
[1728505347586,4.14324,2413.6,2413.2,4.14387]
[1728505348170,0.09246965,2413.5,2413.2,4.14387]
[1728505348897,4.14362,2413.4,2413.1,0.7916]
[1728505349203,0.83795597,2413.3,2413.0,4.69418]
[1728505349409,8.28699,2413.5,2413.0,4.69418]
[1728505349614,0.09246965,2413.2,2413.0,4.69418]
[1728505349901,8.28699,2413.5,2413.0,4.69418]
[1728505349902,0.09246965,2413.1,2413.0,4.69418]
[1728505350282,4.14354,2413.4,2413.0,4.69418]
[1728505350493,0.09246965,2413.3,2413.0,4.69418]
[1728505350805,0.09246965,2413.3,2413.0,0.55]
[1728505352201,4.23618965,2413.3,2413.0,0.55]
[1728505352404,4.14363,2413.4,2413.0,0.55]
[1728505352638,0.09246965,2413.2,2413.0,0.55]
[1728505352803,4.97234,2413.4,2413.0,0.55]
[1728505353335,0.09246965,2413.3,2413.0,0.55]
[1728505353914,0.89926965,2413.3,2413.0,0.55]
[1728505355429,5.04304965,2413.3,2413.0,0.55]
[1728505355591,0.89926965,2413.3,2413.0,0.55]
[1728505356309,5.35177932,2413.3,2412.9,0.7916]
[1728505356506,4.14421,2413.1,2412.7,0.7635]
[1728505356700,4.14441,2412.9,2412.6,7.38]
[1728505356901,0.09238869,2413.0,2412.6,7.38]
[1728505357127,4.1444,2412.9,2412.6,7.38]
[1728505357334,4.23678869,2412.9,2412.6,7.38]
[1728505357730,0.09238869,2412.9,2412.6,7.38]
[1728505358733,5.06537869,2412.9,2412.6,7.38]
[1728505360833,0.09238869,2412.9,2412.7,0.55]
[1728505361041,0.09238869,2412.9,2412.7,5.57193929]
[1728505361221,4.9052,2413.2,2412.7,5.65482421]
[1728505361430,0.09238869,2412.8,2412.7,4.77749492]
[1728505361601,0.09224365,2412.8,2412.7,4.77749492]
[1728505361935,4.9052,2413.2,2412.7,4.77749492]
[1728505362238,0.09224365,2412.8,2412.7,4.77749492]
[1728505362422,4.14405,2413.1,2412.7,4.77749492]
[1728505362734,4.14405,2413.1,2412.7,0.63288492]
[1728505362924,0.09224365,2413.0,2412.7,0.63288492]
[1728505363326,0.09224365,2413.0,2412.7,0.55]
[1728505363496,4.23656365,2413.0,2412.6,0.55]
[1728505364136,4.14439,2412.9,2412.5,4.90547]
[1728505364341,8.28886,2412.9,2412.5,4.90547]
[1728505364526,0.86225645,2412.8,2412.4,0.1202643]
[1728505364839,5.00694645,2412.8,2412.4,0.1202643]
[1728505365809,4.14478,2412.7,2412.4,0.1202643]
[1728505366009,5.00694645,2412.8,2412.4,0.1202643]
[1728505366224,9.05938,2412.8,2412.4,0.1202643]
[1728505366410,0.09225645,2412.7,2412.4,0.1202643]
[1728505366828,9.05938,2412.8,2412.4,0.1202643]
[1728505367437,0.09225645,2412.7,2412.4,0.1202643]
[1728505367656,9.05934,2412.8,2412.4,0.1202643]
[1728505367829,0.09225645,2412.7,2412.4,0.1202643]
[1728505368149,4.14474,2412.7,2412.4,0.1202643]
[1728505368314,0.09225645,2412.6,2412.4,0.1202643]
[1728505370350,4.91457,2412.8,2412.4,0.1202643]
[1728505370548,0.09204741,2412.5,2412.4,0.1202643]
[1728505370708,4.91457,2412.8,2412.4,0.1202643]
[1728505370914,0.09204741,2412.5,2412.4,0.1202643]
[1728505371111,4.91457,2412.8,2412.4,0.1202643]
[1728505371346,0.09204741,2412.5,2412.4,0.1202643]
[1728505371545,4.91457,2412.8,2412.4,4.2655043]
[1728505371745,4.91457,2412.8,2412.4,0.1202643]
[1728505371746,0.09197488,2412.5,2412.4,0.1202643]
[1728505371948,9.05923,2412.8,2412.4,0.1202643]
[1728505372160,0.09197488,2412.5,2412.4,0.1202643]
[1728505372330,9.05923,2412.8,2412.4,0.1202643]
[1728505372528,0.09197488,2412.5,2412.4,0.1202643]
[1728505372719,9.05923,2412.8,2412.4,0.1202643]
[1728505372914,0.09197488,2412.5,2412.4,0.1202643]
[1728505373155,9.05923,2412.8,2412.4,0.1202643]
[1728505373341,0.09197488,2412.5,2412.4,0.1202643]
[1728505373519,9.05923,2412.8,2412.4,0.1202643]
[1728505373718,0.09197488,2412.5,2412.4,0.1202643]
[1728505373951,9.05923,2412.8,2412.4,0.1202643]
[1728505374158,0.09197488,2412.5,2412.4,0.1202643]
[1728505374448,9.05923,2412.8,2412.4,0.1202643]
[1728505374657,4.91457,2412.8,2412.4,4.2655043]
[1728505375016,0.09197488,2412.7,2412.4,0.1202643]
[1728505375217,4.91457,2412.8,2412.4,4.2654043]
[1728505375417,0.09197488,2412.7,2412.4,4.2654043]
[1728505375659,4.91457,2412.8,2412.4,4.2654043]
[1728505376025,0.09197488,2412.7,2412.4,0.1202643]
[1728505376219,4.91457,2412.8,2412.4,0.1202643]
[1728505376560,0.09197488,2412.7,2412.4,0.1202643]
[1728505376918,9.05923,2412.8,2412.4,0.1202643]
[1728505377119,0.09197488,2412.6,2412.4,0.1202643]
[1728505377319,9.05923,2412.8,2412.4,0.1202643]
[1728505377520,0.09197488,2412.5,2412.4,0.1202643]
[1728505378028,9.05923,2412.8,2412.4,0.1202643]
[1728505378356,0.09197488,2412.7,2412.4,0.1202643]
[1728505378801,9.05923,2412.8,2412.4,0.1202643]
[1728505378963,0.09197488,2412.6,2412.4,0.1202643]
[1728505379260,4.91457,2412.8,2412.4,0.1202643]
[1728505379468,4.14434,2413.0,2412.4,2.91534844]
[1728505379757,4.23644208,2412.9,2412.5,0.55]
[1728505380456,4.23644208,2412.9,2412.5,4.69492]
[1728505380457,0.09196208,2412.9,2412.5,4.69492]
[1728505380827,0.09196208,2412.9,2412.7,4.95112]
[1728505381261,0.09200475,2412.8,2412.7,4.95112]
[1728505381477,4.90187,2413.2,2412.7,6.051232]
[1728505381769,4.23612475,2413.1,2412.7,6.1341171]
[1728505382685,4.23612475,2413.1,2412.7,6.051232]
[1728505383729,3.95735445,2413.1,2412.5,0.55]
[1728505383972,3.95735445,2413.1,2412.4,0.1202643]
[1728505383973,3.8653497,2412.7,2412.4,0.1202643]
[1728505384269,4.14467,2412.8,2412.4,0.1202643]
[1728505384573,5.02489197,2412.8,2412.4,0.1202643]
[1728505384786,0.09206021,2412.7,2412.4,0.1202643]
[1728505385069,5.02489197,2412.8,2412.4,0.1202643]
[1728505385278,0.09206021,2412.7,2412.4,0.1202643]
[1728505385450,4.14475,2412.7,2412.4,0.1202643]
[1728505385648,0.09206021,2412.6,2412.4,0.1202643]
[1728505385970,4.23697021,2412.6,2412.4,0.1202643]
[1728505386175,4.14507,2412.5,2412.4,0.1202643]
[1728505386378,0.7654,2412.5,2412.4,0.1202643]
[1728505386752,0.85746021,2412.5,2412.4,0.1202643]
[1728505388739,8.86787991,2412.5,2412.4,0.1202643]
[1728505389278,0.85746021,2412.5,2412.4,0.1202643]
[1728505389584,4.23713021,2412.5,2412.4,0.1202643]
[1728505389879,5.15346323,2412.5,2412.4,0.1202643]
[1728505391681,9.01881293,2412.5,2412.4,0.1202643]
[1728505391885,9.76911293,2412.5,2412.4,0.1202643]
[1728505401387,12.76911293,2412.5,2412.4,0.1202643]
[1728505401591,12.76911293,2412.5,2411.4,0.7827]
[1728505401592,3.8216,2412.4,2411.4,0.7827]
[1728505401907,4.14679,2411.5,2411.2,0.7949]
[1728505402049,4.14733,2411.2,2411.0,0.7949]
[1728505402400,0.09135595,2411.1,2411.0,0.7949]
[1728505402753,4.23883595,2411.1,2410.8,5.0]
[1728505402988,4.23883595,2411.1,2410.8,5.7949]
[1728505402989,0.09135595,2411.1,2410.8,5.7949]
[1728505403550,4.14768,2411.0,2410.8,5.7949]
[1728505403800,0.09135595,2411.1,2410.9,0.55]
[1728505404091,4.14733,2411.2,2410.9,0.55]
[1728505404993,8.7959897,2411.3,2410.9,0.55]
[1728505405224,4.14742,2411.2,2410.9,0.55]
[1728505405517,4.14742,2411.2,2410.6,0.7755]
[1728505405518,4.14758,2411.1,2410.6,0.7755]
[1728505406028,8.29548,2411.0,2410.6,0.7755]
[1728505406319,8.29548,2411.0,2410.4,4.14867]
[1728505406320,4.14786,2410.9,2410.4,4.14867]
[1728505406477,4.14786,2410.9,2410.5,0.55]
[1728505406677,4.14767,2411.0,2410.5,0.55]
[1728505406678,4.14767,2411.0,2410.5,4.69847]
[1728505406874,4.14767,2411.0,2410.5,0.55]
[1728505407201,4.14767,2411.0,2410.5,4.69848]
[1728505407595,3.8653497,2411.1,2410.4,0.55]
[1728505407918,4.14765,2411.0,2410.6,0.55]
[1728505409110,4.14745,2411.2,2410.7,4.14815]
[1728505409319,4.14745,2411.2,2410.7,4.90535]
[1728505409320,8.29487,2411.2,2410.7,4.90535]
[1728505409628,4.14742,2411.2,2410.7,4.90535]
[1728505409997,8.29483,2411.2,2410.7,4.90535]
[1728505410398,4.14751,2411.1,2410.7,4.90535]
[1728505410626,4.14751,2411.1,2410.7,0.7572]
[1728505410918,4.14765,2411.0,2410.7,0.7572]
[1728505411283,4.14765,2411.0,2410.6,0.55]
[1728505411529,4.91291,2410.9,2410.5,0.7612]
[1728505411681,4.91291,2410.9,2410.3,9.14873]
[1728505411682,4.14817,2410.7,2410.3,4.90993]
[1728505411884,4.14817,2410.7,2410.3,0.7612]
[1728505412324,4.14836,2410.6,2410.3,0.7612]
[1728505412508,4.14836,2410.6,2410.1,4.14908]
[1728505412509,0.09035636,2410.5,2410.1,4.91028]
[1728505413037,4.23889636,2410.5,2410.1,0.7612]
[1728505413540,4.14903,2410.2,2410.0,0.1202643]
[1728505413711,4.1492,2410.1,2410.0,0.1202643]
[1728505414039,0.09017255,2410.1,2410.0,0.1202643]
[1728505415029,0.09017255,2410.1,2410.0,8.896184]
[1728505415305,4.91309,2410.8,2410.3,4.14882]
[1728505415619,0.09005283,2410.7,2410.3,4.14882]
[1728505415997,0.765,2410.8,2410.5,4.14851]
[1728505416240,0.09005283,2410.6,2410.4,4.14867]
[1728505416545,0.09005283,2410.5,2410.4,4.14867]
[1728505416900,0.765,2410.8,2410.1,4.69907]
[1728505417099,3.8653497,2410.5,2410.0,0.1202643]
[1728505417411,4.14889,2410.3,2410.0,0.1202643]
[1728505417614,3.8653497,2410.3,2410.0,0.1202643]
[1728505418011,4.1492,2410.1,2410.0,0.1202643]
[1728505418207,4.23908283,2410.2,2410.0,0.1202643]
[1728505418497,0.09005283,2410.1,2410.0,0.1202643]
[1728505418743,4.14886,2410.3,2410.0,0.1202643]
[1728505418939,0.09005283,2410.1,2410.0,0.1202643]
[1728505419108,4.14886,2410.3,2410.0,0.1202643]
[1728505419315,0.09005283,2410.2,2410.0,0.1202643]
[1728505419540,4.91381,2410.4,2410.0,0.1202643]
[1728505419743,4.32838467,2410.7,2410.0,4.2695143]
[1728505419744,0.09005283,2410.1,2410.0,4.2695143]
[1728505419906,4.14853,2410.5,2410.0,4.2695143]
[1728505420224,0.09005283,2410.4,2410.0,4.2695143]
[1728505421926,0.09005283,2410.4,2410.0,0.1202643]
[1728505422112,4.1492,2410.1,2410.0,0.1202643]
[1728505422530,8.10460253,2410.1,2410.0,0.1202643]
[1728505422732,8.93470253,2410.1,2410.0,0.1202643]
[1728505423061,13.24308678,2410.1,2410.0,0.1202643]
[1728505428217,5.22853708,2410.1,2410.0,0.1202643]
[1728505428421,0.09005283,2410.1,2410.0,0.1202643]
[1728505428848,4.14899,2410.3,2410.0,0.1202643]
[1728505429143,4.14905,2410.2,2410.0,0.1202643]
[1728505429352,4.23849559,2410.2,2410.0,0.1202643]
[1728505430424,0.08944559,2410.2,2410.0,0.1202643]
[1728505430747,4.14898,2410.3,2410.0,0.1202643]
[1728505430959,0.08944559,2410.1,2410.0,0.1202643]
[1728505431136,4.14898,2410.3,2410.0,0.1202643]
[1728505431449,0.08944559,2410.1,2410.0,0.1202643]
[1728505431616,4.14887,2410.3,2410.0,0.1202643]
[1728505431822,0.08944559,2410.1,2410.0,0.1202643]
[1728505432053,4.91684,2410.2,2410.0,0.1202643]
[1728505432258,4.73032959,2410.1,2410.0,0.1202643]
[1728505433321,11.59567929,2410.1,2410.0,0.1202643]
[1728505433521,12.36347929,2410.1,2410.0,0.1202643]
[1728505438623,12.91347929,2410.1,2410.0,0.1202643]
[1728505442133,13.56390509,2410.1,2410.0,0.1202643]
[1728505443570,13.22488203,2410.1,2410.0,0.1202643]
[1728505445168,10.22488203,2410.1,2410.0,0.1202643]
[1728505446438,13.22488203,2410.1,2410.0,0.1202643]
[1728505447535,12.57445623,2410.1,2410.0,0.1202643]
[1728505451279,4.1511,2409.0,2408.9,0.8245]
[1728505451460,4.15135,2408.9,2408.5,0.8054]
[1728505451845,0.08893648,2408.8,2408.5,0.8054]
[1728505452229,0.08893648,2408.8,2408.1,0.0103815]
[1728505452230,4.15247,2408.2,2408.1,0.0103815]
[1728505452431,8.386117,2408.2,2408.1,0.0103815]
[1728505452642,8.4750064,2408.2,2408.1,0.0103815]
[1728505459676,5.4750064,2408.2,2408.1,0.0103815]
[1728505464675,8.4750064,2408.2,2408.1,0.0103815]
[1728505467660,7.6566064,2408.2,2408.1,0.0103815]
[1728505474490,11.53765804,2408.2,2408.1,0.0103815]
[1728505474660,7.2413594,2408.2,2408.1,0.0103815]
[1728505474999,11.12241104,2408.2,2408.1,0.0103815]
[1728505481391,7.2413594,2408.2,2408.1,0.0103815]
[1728505481950,11.12241104,2408.2,2408.1,0.0103815]
[1728505483640,7.2413594,2408.2,2408.1,0.0103815]
[1728505483996,11.12241104,2408.2,2408.1,0.0103815]
[1728505484219,12.67067675,2408.2,2408.1,0.0103815]
[1728505487914,12.67067675,2408.2,2408.1,0.0103815]
[1728505489304,13.48367675,2408.2,2408.1,0.0103815]
[1728505493248,14.59883691,2408.2,2408.1,0.0103815]
[1728505493452,11.82259164,2407.7,2407.6,0.1202643]
[1728505493803,11.90397199,2407.7,2407.6,0.1202643]
[1728505494031,13.50968919,2407.7,2407.6,0.1202643]
[1728505496348,12.72148919,2407.7,2407.6,0.1202643]
[1728505496855,7.23472035,2407.7,2407.6,0.1202643]
[1728505497155,4.23472035,2407.7,2407.6,0.1202643]